bitfinex/quotes_BTCUSD_20241009
["timestamp","ask_amount","ask_price","bid_price","bid_amount"]
[1728462078354,0.57704185,62265.0,62264.0,0.011]
[1728462078849,0.57703578,62265.0,62264.0,0.001]
[1728462079091,0.16062,62259.0,62256.0,0.2405994]
[1728462079315,0.05270008,62258.0,62256.0,0.2405994]
[1728462079790,0.06499094,62258.0,62256.0,0.00082]
[1728462080233,0.01630664,62258.0,62256.0,0.00082]
[1728462080478,0.160624,62257.0,62256.0,0.00082]
[1728462080737,0.01630664,62258.0,62256.0,0.00782]
[1728462080993,0.01229258,62257.0,62256.0,0.00782]
[1728462081488,0.01229258,62257.0,62256.0,0.176447]
[1728462081717,0.01229258,62257.0,62256.0,0.161447]
[1728462081944,0.001,62258.0,62257.0,0.160622]
[1728462082650,0.160617,62260.0,62256.0,0.171445]
[1728462082881,0.001,62257.0,62256.0,0.170445]
[1728462083612,0.14137814,62262.0,62256.0,0.00082]
[1728462083885,0.30199014,62262.0,62258.0,0.16062]
[1728462084143,0.160615,62261.0,62256.0,0.161445]
[1728462084391,0.22711009,62261.0,62257.0,0.009]
[1728462084621,0.06649509,62261.0,62256.0,0.161445]
[1728462084851,0.160616,62260.0,62256.0,0.165445]
[1728462085557,0.001,62258.0,62257.0,0.008]
[1728462086041,0.38772509,62261.0,62256.0,0.166445]
[1728462086042,0.160618,62260.0,62256.0,0.166445]
[1728462086282,0.11305704,62259.0,62257.0,0.160623]
[1728462086550,0.11305704,62259.0,62256.0,0.01182]
[1728462086776,0.06649509,62261.0,62256.0,0.01182]
[1728462086777,0.160617,62260.0,62256.0,0.166447]
[1728462087018,0.16062,62259.0,62256.0,0.00582]
[1728462087254,0.16463467,62260.0,62256.0,0.166445]
[1728462087486,0.00401567,62260.0,62257.0,0.160623]
[1728462087734,0.16463167,62260.0,62257.0,0.160623]
[1728462087969,0.27605908,62260.0,62256.0,0.00082]
[1728462088240,0.001,62258.0,62257.0,0.008]
[1728462088499,0.3461246,62258.0,62257.0,0.008]
[1728462088739,0.160624,62257.0,62256.0,0.00082]
[1728462088999,0.16463987,62257.0,62256.0,0.00082]
[1728462089260,0.74860047,62257.0,62256.0,0.00082]
[1728462089495,0.74264554,62257.0,62256.0,0.00082]
[1728462089762,0.86231936,62257.0,62256.0,0.00082]
[1728462089995,0.74264554,62257.0,62256.0,0.00082]
[1728462090230,0.86231936,62257.0,62256.0,0.00082]
[1728462090486,0.7700034,62257.0,62256.0,0.00082]
[1728462091211,0.86584875,62257.0,62256.0,0.01082]
[1728462092173,0.86684875,62257.0,62256.0,0.01982]
[1728462092683,0.93031788,62257.0,62256.0,0.01982]
[1728462093663,0.94257538,62257.0,62256.0,0.01982]
[1728462094610,0.94265164,62257.0,62256.0,0.01982]
[1728462099649,0.94264382,62257.0,62256.0,0.01982]
[1728462100672,0.96660428,62257.0,62256.0,0.01982]
[1728462100931,0.84679304,62257.0,62256.0,0.01982]
[1728462101638,0.96659639,62257.0,62256.0,0.01982]
[1728462107686,0.84679304,62257.0,62256.0,0.01982]
[1728462109199,0.84677448,62257.0,62256.0,0.01982]
[1728462113346,0.51118848,62257.0,62256.0,0.01982]
[1728462113785,0.63098493,62257.0,62256.0,0.01982]
[1728462114223,0.51118848,62257.0,62256.0,0.01982]
[1728462114442,0.63236924,62257.0,62256.0,0.01982]
[1728462116009,0.63236924,62257.0,62248.0,0.079221]
[1728462116010,0.005,62249.0,62248.0,0.000821]
[1728462116015,0.165645,62249.0,62248.0,0.000821]
[1728462116241,0.84536052,62249.0,62248.0,0.000821]
[1728462116470,0.84134377,62249.0,62248.0,0.000821]
[1728462116914,0.72356271,62249.0,62248.0,0.000821]
[1728462118043,0.72356271,62249.0,62248.0,0.002821]
[1728462118261,0.87897615,62249.0,62248.0,0.004821]
[1728462118560,0.94052514,62249.0,62248.0,0.004821]
[1728462118806,0.94050642,62249.0,62248.0,0.002821]
[1728462119707,0.94050642,62249.0,62248.0,0.000821]
[1728462119934,0.94250642,62249.0,62248.0,0.000821]
[1728462120162,0.94450642,62249.0,62248.0,0.000821]
[1728462120386,0.165663,62242.0,62241.0,0.000821]
[1728462120610,0.50982331,62242.0,62241.0,0.000821]
[1728462120834,0.69490991,62242.0,62241.0,0.000821]
[1728462121518,0.83966819,62242.0,62241.0,0.006821]
[1728462122489,0.69590991,62242.0,62241.0,0.006821]
[1728462122968,0.80733732,62242.0,62241.0,0.006821]
[1728462123410,0.80833732,62242.0,62241.0,0.012821]
[1728462125259,0.81033732,62242.0,62241.0,0.012821]
[1728462125489,0.80833732,62242.0,62241.0,0.012821]
[1728462125734,0.81033732,62242.0,62241.0,0.012821]
[1728462125970,0.81033732,62242.0,62228.0,0.2397794]
[1728462125971,0.165696,62229.0,62228.0,0.2397794]
[1728462126213,0.49781797,62229.0,62228.0,0.2397794]
[1728462126448,0.160704,62226.0,62225.0,0.00082]
[1728462126665,0.16472183,62226.0,62225.0,0.00082]
[1728462126884,0.17687038,62226.0,62225.0,0.00082]
[1728462128251,0.17687038,62226.0,62225.0,0.01382]
[1728462128252,0.17787038,62226.0,62225.0,0.01382]
[1728462128483,0.30172829,62226.0,62225.0,0.02582]
[1728462128947,0.45714173,62226.0,62225.0,0.02582]
[1728462129171,0.4581239,62226.0,62225.0,0.02582]
[1728462129635,0.01914855,62226.0,62225.0,0.02582]
[1728462129876,0.01914855,62226.0,62225.0,0.19462]
[1728462130146,0.01214855,62226.0,62225.0,0.16962]
[1728462130379,0.01214855,62226.0,62225.0,0.336327]
[1728462130380,0.01314855,62226.0,62225.0,0.336327]
[1728462130605,0.002,62226.0,62225.0,0.341327]
[1728462131599,0.00401736,62232.0,62230.0,0.160692]
[1728462131829,0.00401736,62232.0,62231.0,0.0786]
[1728462132947,0.00401733,62233.0,62231.0,0.1726]
[1728462133176,0.16470433,62233.0,62231.0,0.1726]
[1728462133411,0.00401733,62233.0,62231.0,0.1726]
[1728462133646,0.005,62234.0,62231.0,0.1726]
[1728462133879,0.00401732,62233.0,62231.0,0.1726]
[1728462134138,0.4004684,62232.0,62231.0,0.001]
[1728462134369,0.160701,62227.0,62226.0,0.076]
[1728462134609,0.160701,62227.0,62225.0,0.00582]
[1728462134610,0.161704,62226.0,62225.0,0.00582]
[1728462134845,0.29768657,62226.0,62225.0,0.00582]
[1728462135343,0.29668657,62226.0,62225.0,0.00082]
[1728462137198,0.29768657,62226.0,62225.0,0.00682]
[1728462137429,0.30368657,62226.0,62225.0,0.01282]
[1728462138907,0.31573628,62226.0,62225.0,0.01282]
[1728462139631,0.47114972,62226.0,62225.0,0.01282]
[1728462139868,0.4671319,62226.0,62225.0,0.01282]
[1728462148934,0.53884542,62226.0,62225.0,0.01282]
[1728462149163,0.54084542,62226.0,62225.0,0.01282]
[1728462149402,0.4671319,62226.0,62225.0,0.01282]
[1728462149875,0.56274993,62226.0,62225.0,0.01282]
[1728462150105,0.53882696,62226.0,62225.0,0.01282]
[1728462150333,0.4671319,62226.0,62225.0,0.01282]
[1728462150590,0.4671319,62226.0,62225.0,0.09492]
[1728462157559,0.51492657,62226.0,62225.0,0.09492]
[1728462158460,0.4671319,62226.0,62225.0,0.09492]
[1728462159561,0.53882696,62226.0,62225.0,0.09492]
[1728462160231,0.5389849,62226.0,62225.0,0.09492]
[1728462160456,0.73982801,62226.0,62225.0,0.09492]
[1728462161385,0.76377901,62226.0,62225.0,0.09492]
[1728462162582,0.76391644,62226.0,62225.0,0.09492]
[1728462162818,0.76391709,62226.0,62225.0,0.09492]
[1728462163448,0.644024,62226.0,62225.0,0.09492]
[1728462164337,0.64396419,62226.0,62225.0,0.09492]
[1728462165493,0.64396419,62226.0,62225.0,0.01282]
[1728462166196,0.7876702,62226.0,62225.0,0.01282]
[1728462166666,0.71517797,62226.0,62225.0,0.01282]
[1728462168854,0.71717797,62226.0,62225.0,0.01282]
[1728462169092,0.71517797,62226.0,62225.0,0.01282]
[1728462169812,0.71720611,62226.0,62225.0,0.01282]
[1728462171549,0.46907209,62226.0,62225.0,0.01282]
[1728462171751,0.74020611,62226.0,62225.0,0.01282]
[1728462171984,0.93740611,62226.0,62225.0,0.01282]
[1728462172219,0.93740611,62226.0,62222.0,0.00082]
[1728462172220,0.45244175,62223.0,62222.0,0.00082]
[1728462172466,0.79288975,62223.0,62222.0,0.00082]
[1728462172728,0.64285863,62223.0,62222.0,0.00082]
[1728462172972,0.89099265,62223.0,62222.0,0.00082]
[1728462173427,0.80486419,62223.0,62222.0,0.00082]
[1728462173658,1.1996743,62223.0,62222.0,0.00082]
[1728462174119,1.03199821,62223.0,62222.0,0.00082]
[1728462174360,0.78386419,62223.0,62222.0,0.00082]
[1728462174580,0.86999265,62223.0,62222.0,0.00082]
[1728462175028,1.03197483,62223.0,62222.0,0.00082]
[1728462175478,0.61985863,62223.0,62222.0,0.00082]
[1728462175693,0.77327207,62223.0,62222.0,0.00082]
[1728462176105,1.02940609,62223.0,62222.0,0.00082]
[1728462176600,1.03140609,62223.0,62222.0,0.00082]
[1728462176810,1.03740609,62223.0,62222.0,0.00082]
[1728462177266,1.03140609,62223.0,62222.0,0.00082]
[1728462177477,1.02140609,62223.0,62222.0,0.00082]
[1728462177686,1.02640609,62223.0,62222.0,0.00082]
[1728462179269,1.03140609,62223.0,62222.0,0.00082]
[1728462180147,1.03128232,62223.0,62222.0,0.00082]
[1728462181448,0.87586888,62223.0,62222.0,0.00082]
[1728462181661,0.87586888,62223.0,62222.0,0.07612]
[1728462181662,0.77586888,62223.0,62222.0,0.07612]
[1728462181877,0.67185851,62223.0,62222.0,0.07612]
[1728462183079,0.67185851,62223.0,62222.0,0.00082]
[1728462183324,0.52785863,62223.0,62222.0,0.00082]
[1728462183566,0.87792164,62223.0,62222.0,0.00082]
[1728462183800,2.91896508,62223.0,62222.0,0.00082]
[1728462184032,2.56532808,62223.0,62222.0,0.00082]
[1728462185421,2.52785308,62223.0,62222.0,0.00082]
[1728462185962,1.03133508,62223.0,62222.0,0.00082]
[1728462188300,1.12863508,62223.0,62222.0,0.00082]
[1728462188740,1.2905528,62223.0,62222.0,0.00082]
[1728462188952,1.3135528,62223.0,62222.0,0.00082]
[1728462190735,1.74253908,62223.0,62222.0,0.00082]
[1728462192369,1.74053908,62223.0,62222.0,0.00082]
[1728462192583,1.50679108,62223.0,62222.0,0.00082]
[1728462192811,1.50679108,62223.0,62216.0,0.00082]
[1728462192812,0.16572,62220.0,62216.0,0.00082]
[1728462193036,0.16572,62220.0,62211.0,0.000821]
[1728462193037,0.16574,62212.0,62211.0,0.000821]
[1728462193258,2.68181153,62212.0,62211.0,0.000821]
[1728462193505,2.82996514,62212.0,62211.0,0.000821]
[1728462193722,2.93569445,62212.0,62211.0,0.000821]
[1728462193939,2.86114945,62212.0,62211.0,0.000821]
[1728462194156,2.88414945,62212.0,62211.0,0.000821]
[1728462194812,2.85797945,62212.0,62211.0,0.000821]
[1728462195009,2.80909345,62212.0,62211.0,0.000821]
[1728462195484,2.81109345,62212.0,62211.0,0.000821]
[1728462196012,2.91709345,62212.0,62211.0,0.000821]
[1728462196910,2.92809345,62212.0,62211.0,0.001821]
[1728462201525,2.92809345,62212.0,62210.0,0.000821]
[1728462201526,0.005,62211.0,62210.0,0.000821]
[1728462201743,0.165763,62203.0,62202.0,0.000821]
[1728462201964,0.32519599,62203.0,62202.0,0.000821]
[1728462202186,0.45278182,62203.0,62202.0,0.000821]
[1728462202437,0.33308024,62203.0,62202.0,0.000821]
[1728462203080,0.33308024,62203.0,62202.0,0.001821]
[1728462203325,0.33308024,62203.0,62202.0,0.095721]
[1728462203789,0.33308024,62203.0,62202.0,0.173621]
[1728462204451,0.45272033,62203.0,62202.0,0.173621]
[1728462204685,0.57150445,62203.0,62202.0,0.173621]
[1728462204913,0.57150445,62203.0,62202.0,0.175621]
[1728462205569,0.57148915,62203.0,62202.0,0.175621]
[1728462206022,0.4287845,62203.0,62202.0,0.175621]
[1728462206516,0.40485647,62203.0,62202.0,0.175621]
[1728462206728,0.40485561,62203.0,62202.0,0.175621]
[1728462209416,0.33308024,62203.0,62202.0,0.175621]
[1728462210332,0.1726668,62203.0,62202.0,0.175621]
[1728462210539,0.2444417,62203.0,62202.0,0.175621]
[1728462210775,0.1726668,62203.0,62202.0,0.175621]
[1728462211474,0.30232187,62203.0,62202.0,0.175621]
[1728462211684,0.30232187,62203.0,62202.0,0.35175736]
[1728462213053,0.37410772,62203.0,62202.0,0.35175736]
[1728462214199,0.24445265,62203.0,62202.0,0.35175736]
[1728462216562,0.24447532,62203.0,62202.0,0.35175736]
[1728462218546,0.2684115,62203.0,62202.0,0.35175736]
[1728462219495,0.0119038,62203.0,62202.0,0.35175736]
[1728462219708,0.05979285,62203.0,62202.0,0.35175736]
[1728462219919,0.0119038,62203.0,62202.0,0.35175736]
[1728462220618,0.1726668,62203.0,62202.0,0.35175736]
[1728462221656,0.0119038,62203.0,62202.0,0.35175736]
[1728462222421,0.1726668,62203.0,62202.0,0.35175736]
[1728462223344,0.0119038,62203.0,62202.0,0.35175736]
[1728462223570,0.0119038,62203.0,62202.0,0.51252336]
[1728462224011,0.160761,62204.0,62202.0,0.27385736]
[1728462224260,0.04788905,62205.0,62203.0,0.0814]
[1728462224504,0.07183358,62204.0,62203.0,0.0814]
[1728462224730,0.16925882,62204.0,62203.0,0.0814]
[1728462225671,0.33001982,62204.0,62203.0,0.0814]
[1728462227203,0.16925882,62204.0,62203.0,0.0814]
[1728462227403,0.12134613,62204.0,62203.0,0.0814]
[1728462227672,0.28210713,62204.0,62203.0,0.0814]
[1728462227903,0.35394071,62204.0,62203.0,0.0834]
[1728462228714,0.3658534,62204.0,62203.0,0.0834]
[1728462229844,0.2050924,62204.0,62203.0,0.0834]
[1728462230558,0.3658534,62204.0,62203.0,0.0834]
[1728462231861,0.29401982,62204.0,62203.0,0.0834]
[1728462232097,0.36593535,62204.0,62203.0,0.0834]
[1728462232563,0.29401982,62204.0,62203.0,0.0834]
[1728462233484,0.38976452,62204.0,62203.0,0.0834]
[1728462234163,0.29401982,62204.0,62203.0,0.0834]
[1728462234393,0.38976452,62204.0,62203.0,0.0834]
[1728462236052,0.3899457,62204.0,62203.0,0.0834]
[1728462236298,0.2291847,62204.0,62203.0,0.0834]
[1728462237002,0.3899457,62204.0,62203.0,0.0834]
[1728462237486,0.13325882,62204.0,62203.0,0.0834]
[1728462237961,0.29401982,62204.0,62203.0,0.0834]
[1728462239443,0.3899801,62204.0,62203.0,0.0834]
[1728462239840,0.2292191,62204.0,62203.0,0.0834]
[1728462240495,0.10787297,62204.0,62203.0,0.0834]
[1728462240710,0.10787297,62204.0,62203.0,0.244163]
[1728462240921,0.09596028,62205.0,62203.0,0.338663]
[1728462241127,0.09596028,62205.0,62204.0,0.337361]
[1728462241561,0.09596028,62205.0,62203.0,0.323527]
[1728462241562,0.04798736,62208.0,62206.0,0.160756]
[1728462241789,0.04798736,62208.0,62205.0,0.1758]
[1728462241790,0.04798736,62208.0,62207.0,0.160753]
[1728462242078,0.001642,62210.0,62203.0,0.321523]
[1728462242079,0.001642,62210.0,62209.0,0.160748]
[1728462242367,0.001642,62210.0,62209.0,0.34256263]
[1728462242612,0.001642,62210.0,62209.0,0.339348]
[1728462244807,0.002642,62210.0,62209.0,0.344348]
[1728462245039,0.002642,62210.0,62209.0,0.350348]
[1728462245040,0.003642,62210.0,62209.0,0.350348]
[1728462245522,0.01439049,62210.0,62209.0,0.350348]
[1728462245755,0.0143856,62210.0,62209.0,0.350348]
[1728462246003,0.003642,62210.0,62209.0,0.350348]
[1728462246256,0.0143856,62210.0,62209.0,0.1896]
[1728462246506,0.003642,62210.0,62209.0,0.1896]
[1728462246761,0.0143856,62210.0,62209.0,0.1896]
[1728462247013,0.0143856,62210.0,62209.0,0.350348]
[1728462250409,0.1751306,62210.0,62209.0,0.1896]
[1728462250646,0.1751306,62210.0,62209.0,0.0934]
[1728462250647,0.27387291,62210.0,62209.0,0.0934]
[1728462250876,0.1751306,62210.0,62209.0,0.0934]
[1728462254247,0.13573173,62210.0,62209.0,0.0934]
[1728462255224,0.0143856,62210.0,62209.0,0.0934]
[1728462255912,0.0143856,62210.0,62209.0,0.094221]
[1728462258095,0.1751306,62210.0,62209.0,0.094221]
[1728462258324,0.29647673,62210.0,62209.0,0.094221]
[1728462259776,0.13573173,62210.0,62209.0,0.094221]
[1728462261008,0.13573173,62210.0,62209.0,0.254969]
[1728462262494,0.0143856,62210.0,62209.0,0.254969]
[1728462262718,0.0143856,62210.0,62209.0,0.352069]
[1728462266757,0.0143856,62210.0,62209.0,0.191321]
[1728462266989,0.08251724,62210.0,62209.0,0.094221]
[1728462267230,0.0143856,62210.0,62209.0,0.094221]
[1728462268126,0.0143856,62210.0,62209.0,0.254969]
[1728462268560,0.0143856,62210.0,62209.0,0.354069]
[1728462277504,0.06232286,62210.0,62209.0,0.354069]
[1728462280378,0.0143856,62210.0,62209.0,0.354069]
[1728462282518,0.08629149,62210.0,62209.0,0.354069]
[1728462283447,0.28510859,62210.0,62209.0,0.011821]
[1728462283667,0.20763762,62210.0,62209.0,0.011821]
[1728462284123,0.36838262,62210.0,62209.0,0.011821]
[1728462284370,0.29647673,62210.0,62209.0,0.011821]
[1728462284592,0.13573173,62210.0,62209.0,0.011821]
[1728462285030,0.29647673,62210.0,62209.0,0.011821]
[1728462285787,0.41653762,62210.0,62209.0,0.011821]
[1728462286002,0.44895487,62210.0,62209.0,0.011821]
[1728462290826,0.54815487,62210.0,62209.0,0.011821]
[1728462291276,0.69221638,62210.0,62209.0,0.011821]
[1728462291505,0.84761824,62210.0,62209.0,0.011821]
[1728462292450,0.85261824,62210.0,62209.0,0.011821]
[1728462292892,0.85260557,62210.0,62209.0,0.011821]
[1728462293128,0.70856831,62210.0,62209.0,0.011821]
[1728462293359,0.85259346,62210.0,62209.0,0.011821]
[1728462295670,0.70856831,62210.0,62209.0,0.011821]
[1728462296224,0.43474404,62210.0,62209.0,0.011821]
[1728462296466,0.55609017,62210.0,62209.0,0.011821]
[1728462297993,0.55509017,62210.0,62209.0,0.005821]
[1728462298210,0.55409017,62210.0,62209.0,0.000821]
[1728462298471,0.55509017,62210.0,62209.0,0.000821]
[1728462298732,0.55409017,62210.0,62209.0,0.001821]
[1728462298977,0.70950361,62210.0,62209.0,0.001821]
[1728462299220,0.71150361,62210.0,62209.0,0.000821]
[1728462299694,0.43474404,62210.0,62209.0,0.000821]
[1728462299940,0.45689017,62210.0,62209.0,0.000821]
[1728462301158,0.45889017,62210.0,62209.0,0.000821]
[1728462301622,0.45389017,62210.0,62209.0,0.000821]
[1728462302324,0.45889017,62210.0,62209.0,0.000821]
[1728462305127,0.61430361,62210.0,62209.0,0.000821]
[1728462305627,0.45889017,62210.0,62209.0,0.000821]
[1728462312768,0.29847673,62210.0,62209.0,0.000821]
[1728462313001,0.13624614,62210.0,62209.0,0.236869]
[1728462313215,0.06433209,62210.0,62209.0,0.336669]
[1728462313411,0.06433209,62210.0,62209.0,0.175921]
[1728462313613,0.06433209,62210.0,62209.0,0.336669]
[1728462313815,0.06033209,62210.0,62209.0,0.336669]
[1728462314337,0.06433209,62210.0,62209.0,0.336669]
[1728462314542,0.06033209,62210.0,62209.0,0.336669]
[1728462314755,0.06133209,62210.0,62209.0,0.339669]
[1728462315093,0.06233209,62210.0,62209.0,0.343669]
[1728462315957,0.0143856,62210.0,62209.0,0.343669]
[1728462319143,0.003642,62210.0,62209.0,0.343669]
[1728462319583,0.003642,62210.0,62209.0,0.339669]
[1728462319584,0.002642,62210.0,62209.0,0.339669]
[1728462319813,0.001642,62210.0,62209.0,0.175921]
[1728462320051,0.002642,62210.0,62209.0,0.340669]
[1728462320309,0.002642,62210.0,62209.0,0.088121]
[1728462320310,0.28573313,62210.0,62209.0,0.088121]
[1728462320529,0.35704319,62210.0,62209.0,0.076121]
[1728462320752,0.3698335,62210.0,62209.0,0.088121]
[1728462320972,0.3698335,62210.0,62209.0,0.080121]
[1728462321429,0.29752344,62210.0,62209.0,0.084121]
[1728462321662,0.29652344,62210.0,62209.0,0.084121]
[1728462321873,0.29752344,62210.0,62209.0,0.088121]
[1728462322984,0.29752344,62210.0,62209.0,0.012821]
[1728462323429,0.34547063,62210.0,62209.0,0.012821]
[1728462323666,0.18472563,62210.0,62209.0,0.012821]
[1728462324791,0.34547063,62210.0,62209.0,0.012821]
[1728462325014,0.4829303,62210.0,62209.0,0.012821]
[1728462325240,0.48292101,62210.0,62209.0,0.012821]
[1728462326110,0.18471634,62210.0,62209.0,0.012821]
[1728462326326,0.13677844,62210.0,62209.0,0.012821]
[1728462326554,0.20868529,62210.0,62209.0,0.012821]
[1728462326813,0.18471823,62210.0,62209.0,0.012821]
[1728462327084,0.34546323,62210.0,62209.0,0.012821]
[1728462327320,0.41626633,62210.0,62209.0,0.012821]
[1728462327552,0.36832654,62210.0,62209.0,0.012821]
[1728462327796,0.29740272,62210.0,62209.0,0.012821]
[1728462328017,0.30142155,62210.0,62209.0,0.012821]
[1728462328471,0.4212663,62210.0,62209.0,0.012821]
[1728462328703,0.45281616,62210.0,62209.0,0.012821]
[1728462331937,0.33147003,62210.0,62209.0,0.012821]
[1728462332158,0.45281616,62210.0,62209.0,0.012821]
[1728462332630,0.33147003,62210.0,62209.0,0.012821]
[1728462332879,0.45281616,62210.0,62209.0,0.012821]
[1728462338537,0.6082296,62210.0,62209.0,0.012821]
[1728462340105,0.45281616,62210.0,62209.0,0.012821]
[1728462342903,0.54661616,62210.0,62209.0,0.012821]
[1728462343877,0.55161616,62210.0,62209.0,0.012821]
[1728462344088,0.65161616,62210.0,62209.0,0.012821]
[1728462344763,0.64961616,62210.0,62209.0,0.004821]
[1728462345219,0.8860296,62210.0,62209.0,0.004821]
[1728462345451,0.8850296,62210.0,62209.0,0.000821]
[1728462345703,0.8851296,62210.0,62209.0,0.002821]
[1728462345936,0.9081296,62210.0,62209.0,0.002821]
[1728462346183,0.9081296,62210.0,62209.0,0.004821]
[1728462346414,0.9081296,62210.0,62209.0,0.002821]
[1728462346656,0.9121296,62210.0,62209.0,0.002821]
[1728462346868,0.9121296,62210.0,62209.0,0.000821]
[1728462347308,0.9171296,62210.0,62209.0,0.001821]
[1728462348529,0.9132296,62210.0,62209.0,0.001821]
[1728462348745,0.9182296,62210.0,62209.0,0.001821]
[1728462350419,1.16592235,62210.0,62209.0,0.001821]
[1728462350895,1.16392235,62210.0,62209.0,0.001821]
[1728462351021,0.9182296,62210.0,62209.0,0.001821]
[1728462351233,1.16592235,62210.0,62209.0,0.001821]
[1728462351443,0.9182296,62210.0,62209.0,0.001821]
[1728462352711,1.16592235,62210.0,62209.0,0.001821]
[1728462353844,0.9162296,62210.0,62209.0,0.001821]
[1728462354472,1.16378146,62210.0,62209.0,0.001821]
[1728462354896,0.9162296,62210.0,62209.0,0.001821]
[1728462356663,1.16578146,62210.0,62209.0,0.001821]
[1728462357074,1.3901606,62210.0,62209.0,0.001821]
[1728462357297,1.63771246,62210.0,62209.0,0.001821]
[1728462357574,1.63764264,62210.0,62209.0,0.001821]
[1728462358294,1.16571164,62210.0,62209.0,0.001821]
[1728462358502,1.2309666,62210.0,62209.0,0.001821]
[1728462358721,1.47844864,62210.0,62209.0,0.001821]
[1728462361251,1.47844864,62210.0,62203.0,0.000821]
[1728462361252,0.50850713,62204.0,62203.0,0.000821]
[1728462361497,0.80755672,62204.0,62203.0,0.000821]
[1728462361956,1.0637456,62204.0,62203.0,0.000821]
[1728462362425,0.81626356,62204.0,62203.0,0.000821]
[1728462363131,0.81826356,62204.0,62203.0,0.000821]
[1728462363361,0.971677,62204.0,62203.0,0.000821]
[1728462363592,0.973677,62204.0,62203.0,0.000821]
[1728462364037,0.974677,62204.0,62203.0,0.000821]
[1728462364255,0.972677,62204.0,62203.0,0.000821]
[1728462364473,0.974677,62204.0,62203.0,0.000821]
[1728462364703,0.972677,62204.0,62203.0,0.000821]
[1728462364946,0.75493087,62204.0,62203.0,0.000821]
[1728462365244,0.73193087,62204.0,62203.0,0.000821]
[1728462365473,0.853277,62204.0,62203.0,0.000821]
[1728462365925,0.73193087,62204.0,62203.0,0.000821]
[1728462366151,0.70964085,62204.0,62203.0,0.000821]
[1728462367937,0.58829472,62204.0,62203.0,0.000821]
[1728462368161,0.70964085,62204.0,62203.0,0.000821]
[1728462372702,0.85340849,62204.0,62203.0,0.000821]
[1728462377013,1.10115717,62204.0,62203.0,0.000821]
[1728462377461,0.95738953,62204.0,62203.0,0.000821]
[1728462378474,1.07658953,62204.0,62203.0,0.000821]
[1728462378716,1.07858953,62204.0,62203.0,0.000821]
[1728462379444,1.07758953,62204.0,62203.0,0.000821]
[1728462379701,1.07758953,62204.0,62193.0,0.00082]
[1728462379702,0.56073313,62194.0,62193.0,0.00082]
[1728462379929,0.71614657,62194.0,62193.0,0.00082]
[1728462380385,0.75183848,62194.0,62193.0,0.00082]
[1728462380614,0.94605125,62194.0,62193.0,0.00082]
[1728462380847,0.89565637,62194.0,62193.0,0.00082]
[1728462381040,0.96635746,62194.0,62193.0,0.00082]
[1728462381281,0.82053957,62194.0,62193.0,0.00182]
[1728462382001,0.74323957,62194.0,62193.0,0.00182]
[1728462382457,0.74323957,62194.0,62193.0,0.00282]
[1728462383595,0.62189344,62194.0,62193.0,0.00282]
[1728462383827,0.74323957,62194.0,62193.0,0.00282]
[1728462384589,0.88700128,62194.0,62193.0,0.00282]
[1728462385989,0.88900128,62194.0,62193.0,0.00282]
[1728462388378,1.21490057,62194.0,62193.0,0.00282]
[1728462388548,1.24689428,62194.0,62193.0,0.00282]
[1728462388745,1.49240736,62194.0,62193.0,0.00282]
[1728462388952,1.28831436,62194.0,62193.0,0.00282]
[1728462389096,1.04280128,62194.0,62193.0,0.00282]
[1728462389495,0.89903957,62194.0,62193.0,0.00282]
[1728462390710,0.57623848,62194.0,62193.0,0.00282]
[1728462390955,0.71991828,62194.0,62193.0,0.00282]
[1728462391172,0.57623848,62194.0,62193.0,0.00282]
[1728462392325,0.71992153,62194.0,62193.0,0.00282]
[1728462392551,0.55323848,62194.0,62193.0,0.00282]
[1728462392771,0.70865192,62194.0,62193.0,0.00282]
[1728462395211,0.58730579,62194.0,62193.0,0.00282]
[1728462395431,0.54823848,62194.0,62193.0,0.10002]
[1728462395696,0.44823848,62194.0,62193.0,0.17782]
[1728462396152,0.56798562,62194.0,62193.0,0.17782]
[1728462396416,0.44823848,62194.0,62193.0,0.17782]
[1728462396642,0.17147891,62194.0,62193.0,0.17782]
[1728462397077,0.24333421,62194.0,62193.0,0.17782]
[1728462397297,0.17147891,62194.0,62193.0,0.17782]
[1728462397530,0.29431483,62194.0,62193.0,0.17782]
[1728462397757,0.39012186,62194.0,62193.0,0.17782]
[1728462398676,0.10649894,62194.0,62193.0,0.338609]
[1728462398900,0.05859658,62194.0,62193.0,0.17782]
[1728462399128,0.05859658,62194.0,62193.0,0.08062]
[1728462399129,0.01069191,62194.0,62193.0,0.08062]
[1728462399364,0.32632861,62194.0,62193.0,0.08062]
[1728462399813,0.25447377,62194.0,62193.0,0.08062]
[1728462400028,0.25849354,62194.0,62193.0,0.08062]
[1728462400251,0.37825233,62194.0,62193.0,0.08062]
[1728462400473,0.37423256,62194.0,62193.0,0.08066069]
[1728462402461,0.2912377,62194.0,62193.0,0.08066069]
[1728462403101,0.29123658,62194.0,62193.0,0.08066069]
[1728462403889,0.29123658,62194.0,62193.0,0.17726069]
[1728462405849,0.17147891,62194.0,62193.0,0.17726069]
[1728462407461,0.29123658,62194.0,62193.0,0.17726069]
[1728462410804,0.38467304,62194.0,62193.0,0.17726069]
[1728462411074,0.29123658,62194.0,62193.0,0.17726069]
[1728462411352,0.17147891,62194.0,62193.0,0.17726069]
[1728462412483,0.29123658,62194.0,62193.0,0.17726069]
[1728462412703,0.29122441,62194.0,62193.0,0.17726069]
[1728462415890,0.17147891,62194.0,62193.0,0.17726069]
[1728462416115,0.29206931,62194.0,62193.0,0.17726069]
[1728462418600,0.17147891,62194.0,62193.0,0.17726069]
[1728462419595,0.17147891,62194.0,62193.0,0.08066069]
[1728462420365,0.17549858,62194.0,62193.0,0.08066069]
[1728462422237,0.33091202,62194.0,62193.0,0.00286069]
[1728462422487,0.9868614,62194.0,62193.0,0.00286069]
[1728462422735,1.23452649,62194.0,62193.0,0.00286069]
[1728462423217,1.06973349,62194.0,62193.0,0.00286069]
[1728462423668,1.34792349,62194.0,62193.0,0.00286069]
[1728462423896,1.26715949,62194.0,62193.0,0.00286069]
[1728462424136,0.79133708,62194.0,62193.0,0.00286069]
[1728462424364,0.7286684,62194.0,62193.0,0.00286069]
[1728462424598,0.91277728,62194.0,62193.0,0.00286069]
[1728462425765,0.66009041,62194.0,62193.0,0.00286069]
[1728462425997,0.32689235,62194.0,62193.0,0.00286069]